Workbook

Sheet Exceltool Modernisierungspakete
A1: =Tabelle2!A2 -> 1
B2: Heizungs-Check 2.0: Excel-Tool zu Einsparpotenzial und Wirtschaftlichkeit
A4: =Tabelle2!A34 -> 1 | B4: Ergebnis des Heizungs-Checks: Anlagenbewertung
A5: =Tabelle2!A48 -> 1 | B5: Allgemeine Projektdaten
A6: =Tabelle2!A19 -> 1
A7: =Tabelle2!N57 -> 1 | B7: Projekt-Nr. | G7: Ersteller
A8: 1 | B8: Name
B9: Straße | G9: Datum | H9: =TODAY() -> 2016-08-15
B10: PLZ, Ort
A12: 1 | B12: 1 | C12: 1 | D12: =Tabelle2!H1 ->  | F12: =Tabelle2!M62 -> 1 | G12: =Tabelle2!M67 -> 1
B13: Anlagendaten
B15: Gebäudeart | G15: Art der Heizung
G16: =IF(Tabelle2!A44=3,"Anzahl Heizkreise","Anzahl Heizflächen") -> Anzahl Heizflächen
B17: Anzahl beheizte Wohneinheiten | G17: Höhe des Gebäudes | K17: m
B18: Beheizbare Nutzfläche | F18: m²
G19: Auslegungstemperaturen
B20: Wärmeschutz | K20: °C
B21: Heizlast bestimmen | G21: Vorlauftemperatur während des Heizungs-Checks | K21: °C
F22: kW
G23: Soll-Raumtemperatur | K23: °C
B24: Wärmeerzeuger | G24: Außentemperatur während des Heizungs-Checks | K24: °C
B25: Aktueller Verbrauch
B26: =IF(AND(B12>1,Tabelle2!A19=2),"Bezug auf Brennwert","") ->  | F26: kWh/a | G26: Norm-Außentemperatur der Region | K26: °C
B28: =IF(A6=1,"Energiepreis",IF(A6=2,"Gaspreis",IF(A6=3,"Ölpreis",IF(A6=4,"Wärmepumpen-Strompreis",IF(A6=5,"Biomassepreis",""))))) -> Energiepreis | G28: Auslegungs-Vorlauftemperatur | I28: =Tabelle2!B36 -> Temperatur > 90 °C | K28: °C
B29: =IF(AND(Tabelle2!M62>1,Tabelle2!A19=2),"Bezug auf Brennwert","") ->  | F29: €/kWh
B31: Hilfsenergie-Strompreis
F32: €/kWh
B34: Modernisierungsmaßnahmen
G36: =IF(Tabelle2!C56="","","Beschreibung der Maßnahme:") -> 
G37: =IF(Tabelle2!C56="","",Tabelle2!C56) -> 
B38: Einsparpotenzial
B41: Ergebnisse
B43: Einsparungen | C43: Endenergie Wärme | F43: =IF(Tabelle2!D61="","",Tabelle2!D61) ->  | I43: kWh/a
C44: Hilfsenergie (Strom) | F44: =IF(Tabelle2!D63="","",Tabelle2!D63) ->  | I44: kWh/a
C45: Gesamtenergiekosten | F45: =IF(Tabelle2!F67="","",Tabelle2!F67) ->  | I45: €/a
B47: Investitionskosten
I48: €
B49: Förderungsbetrag | I49: €
B51: Statische Amortisationszeit | F51: =IF(Tabelle2!C82="","",Tabelle2!C82) ->  | I51: Jahre
B52: Amortationszeit innerhalb der Lebensdauer | F52: =IF(F51="","",Tabelle2!F82) -> 
B54: Einsparung Primärenergie | F54: Einsparung CO2-Emissionen
B56: Wärme | C56: =IF(Tabelle2!E85="","",Tabelle2!E85) ->  | E56: kWh/a | F56: Wärme | H56: =IF(Tabelle2!G89="","",Tabelle2!G89) ->  | I56: kg/a
B57: Hilfsenergie (Strom) | C57: =IF(Tabelle2!E86="","",Tabelle2!E86) ->  | E57: kWh/a | F57: Hilfsenergie (Strom) | H57: =IF(Tabelle2!G90="","",Tabelle2!G90) ->  | I57: kg/a
B58: Gesamteinsparung | C58: =IF(Tabelle2!E87="","",Tabelle2!E87) ->  | E58: kWh/a | F58: Gesamteinsparung | H58: =IF(Tabelle2!G91="","",Tabelle2!G91) ->  | I58: kg/a

Sheet Tabelle2 (hidden)
A1: Gebäudeart | B1: Bitte wählen | F1: Heizlast-Berechnung | H1: =IF(OR(A11=1,'Exceltool Modernisierungspakete'!$D$18=""),"",IF(A11=2,J1,IF(A11=3,J2,IF(A11=4,J3,IF(A11=5,J4,IF(A11=6,J5,IF(A11=7,J6,""))))))) ->  | I1: bis 1977 | J1: =0.1725*'Exceltool Modernisierungspakete'!$D$18^0.9866 -> 0
A2: 1 | B2: Ein-/Zweifamilienhaus | I2: 1978 - 1983 | J2: =0.1278*'Exceltool Modernisierungspakete'!$D$18^0.9757 -> 0
I3: 1984 - 1994 | J3: =0.1105*'Exceltool Modernisierungspakete'!$D$18^0.9745 -> 0
A4: Heizlast | B4: Bitte wählen | I4: 1995 - 2001 | J4: =0.0829*'Exceltool Modernisierungspakete'!$D$18^0.9522 -> 0
A5: ='Exceltool Modernisierungspakete'!$A$12 -> 1 | B5: Manuelle Eingabe | I5: 2002 - 2008 | J5: =0.0565*'Exceltool Modernisierungspakete'!$D$18^0.949 -> 0
B6: Über Baualtersklasse | I6: ab 2009 | J6: =0.0499*'Exceltool Modernisierungspakete'!$D$18^0.9391 -> 0
A7: Wert berechnet | B7: =H1 -> 
A8: Wert gesamt | B8: ='Exceltool Modernisierungspakete'!D22 -> 0 | F8: Verbrauchswert-Berechnung | H8: =IF(A11=1,"",IF(A11=2,J8,IF(A11=3,J9,IF(A11=4,J10,IF(A11=5,J11,IF(A11=6,J12,IF(A11=7,J13,""))))))) ->  | I8: bis 1977 | J8: =IF($A$19=1,"",IF(OR($A$19=2,$A$19=3),181*$B$31,IF($A$19=4,72*$B$31,IF($A$19=5,199*$B$31,"")))) -> 
H9: =IF(H8="","",ROUND(H8,-1)) ->  | I9: 1978 - 1983 | J9: =IF($A$19=1,"",IF(OR($A$19=2,$A$19=3),156*$B$31,IF($A$19=4,62*$B$31,IF($A$19=5,172*$B$31,"")))) -> 
A10: Wärmeschutz | B10: Bitte wählen | I10: 1984 - 1994 | J10: =IF($A$19=1,"",IF(OR($A$19=2,$A$19=3),130*$B$31,IF($A$19=4,52*$B$31,IF($A$19=5,143*$B$31,"")))) -> 
A11: 1 | B11: bis 1977 | I11: 1995 - 2001 | J11: =IF($A$19=1,"",IF(OR($A$19=2,$A$19=3),103*$B$31,IF($A$19=4,41*$B$31,IF($A$19=5,114*$B$31,"")))) -> 
B12: 1978 - 1983 | I12: 2002 - 2008 | J12: =IF($A$19=1,"",IF(OR($A$19=2,$A$19=3),72*$B$31,IF($A$19=4,29*$B$31,IF($A$19=5,79*$B$31,"")))) -> 
B13: 1984 - 1994 | I13: ab 2009 | J13: =IF($A$19=1,"",IF(OR($A$19=2,$A$19=3),50*$B$31,IF($A$19=4,20*$B$31,IF($A$19=5,55*$B$31,"")))) -> 
B14: 1995 - 2001
B15: 2002 - 2008
B16: ab 2009 | F16: Systemtemperaturen-Berechnung
G17: =IF('Exceltool Modernisierungspakete'!I21="","",'Exceltool Modernisierungspakete'!I21) -> 
A18: Wärmeerzeuger | B18: Bitte wählen | G18: =IF('Exceltool Modernisierungspakete'!I23="","",'Exceltool Modernisierungspakete'!I23) -> 
A19: 1 | B19: Gaskessel | G19: =IF('Exceltool Modernisierungspakete'!I24="","",'Exceltool Modernisierungspakete'!I24) -> 
B20: Ölkessel | G20: =IF('Exceltool Modernisierungspakete'!I26="","",'Exceltool Modernisierungspakete'!I26) -> 
B21: Wärmepumpe | F21: n | G21: =IF(A44=1,"",IF(A44=2,1.3,IF(A44=3,1.1,""))) -> 
B22: Biomassekessel | G22: =IF(OR(G17="",G18="",G19="",G20="",G21=""),"",(G18-G19)/(G18-G20)) ->  | J22: =IF(AND(Tabelle2!H1>40,Tabelle2!H1>""),"blabla","") -> 
G23: =IF(G22="","",(G17-G18)/(G22^(1/G21))+G18) -> 
A25: Aktueller Verbrauchswert | B25: Bitte wählen
A26: 1 | B26: Manuelle Eingabe
B27: Typischen Wert berechnen | E27: Brennwertbezug
A28: Wert berechnet | B28: =IF(H9="","",IF(A19=2,ROUND(H9*E28,-1),H9)) ->  | E28: 1.11
A29: Wert gesamt | B29: =IF('Exceltool Modernisierungspakete'!D26="","",'Exceltool Modernisierungspakete'!D26) -> 
A31: Nutzfläche | B31: =IF('Exceltool Modernisierungspakete'!D18="","",'Exceltool Modernisierungspakete'!D18) ->  | M31: 90/70
M32: 70/55
A33: Systemtemperaturen | B33: Bitte wählen | M33: 55/45
A34: 1 | B34: Manuelle Eingabe | M34: 35/28
B35: Berechnung
A36: Wert berechnet | B36: =IF(G23>90,"Temperatur > 90 °C",G23) -> Temperatur > 90 °C
A37: Wert gesamt | B37: =IF(A34=2,'Exceltool Modernisierungspakete'!I20,'Exceltool Modernisierungspakete'!I34) -> 0
A39: Anzahl Wohneinheiten | B39: Bitte wählen
A40: 1 | B40: 1
B41: 2
A43: Art der Heizung | B43: Bitte wählen
A44: 1 | B44: Heizkörper
B45: Flächenheizungen
A47: Modernisierungsvarianten | B47: Bitte wählen | J47: Beschreibungen
A48: 1 | B48: =IF(A19=1,"",E48) ->  | E48: Optimierung der Heizungsanlage | J48: V1 | K48: Einbau Hocheffizienzpumpe + voreinstellbare Thermostatventile, Dämmung Verteilleitung Keller, Hydraulischer Abgleich, Einstellung Systemtemperaturen/Betriebszeiten
B49: =IF(A19=2,E49,IF(A19=3,E51,IF(A19=4,E53,IF(A19=5,E54,"")))) ->  | E49: Gas-Brennwertkessel + Speicher + Optimierung | J49: V2 | K49: Einbau Gas-Brennwertkessel + indirekt beheizter Speicher, Sanierung Abgasanlage, Optimierung Gesamtanlage
B50: =IF(A19=2,E50,IF(A19=3,E52,"")) ->  | E50: Gas-Brennwertkessel + solare Trinkwassererwärmung + Optimierung | J50: V3 | K50: Einbau Gas-Brennwertkessel + Solaranlage (Flachkollektor) mit bivalentem Speicher für Trinkwassererwärmung, Sanierung Abgasanlage, Optimierung Gesamtanlage
E51: Öl-Brennwertkessel + Speicher + Optimierung | J51: V4 | K51: Einbau Öl-Brennwertkessel + indirekt beheizter Speicher, Sanierung Abgasanlage, Optimierung Gesamtanlage
E52: Öl-Brennwertkessel + solare Trinkwassererwärmung + Optimierung | J52: V5 | K52: Einbau Öl-Brennwertkessel + Solaranlage (Flachkollektor) mit bivalentem Speicher für Trinkwassererwärmung, Sanierung Abgasanlage, Optimierung Gesamtanlage
E53: Luft-Wasser-Wärmepumpe + Speicher + Optimierung | J53: V6 | K53: Einbau Luft-Wasser-Wärmepumpe + indirekt beheizter Speicher, Optimierung Gesamtanlage
E54: Pelletkessel + Speicher + Optimierung | J54: V7 | K54: Einibau Pelletkessel + indirekt beheizter Speicher, Brennstofflager und automatische Zeitführung, Sanierung Abgasanlage, Optimierung Gesamtanlage
P55: Bitte wählen
A56: Einsparpotenzial | B56: =IF(OR(A19=2,A19=3),IF(A48=1,"",IF(A48=2,0.07,IF(A48=3,0.25,IF(A48=4,0.35,"")))),IF(A19=4,IF(A48=1,"",IF(A48=2,0.07,IF(A48=3,0.2,""))),IF(A19=5,IF(A48=1,"",IF(A48=2,0.07,IF(A48=3,0.2,""))),""))) ->  | C56: =IF(AND(A48=2,NOT(A19=1)),K48,IF(AND(A19=2,A48=3),K49,IF(AND(A19=2,A48=4),K50,IF(AND(A19=3,A48=3),K51,IF(AND(A19=3,A48=4),K52,IF(AND(A19=4,A48=3),K53,IF(AND(A19=5,A48=3),K54,""))))))) ->  | N56: Einsparpotenzial | P56: Manuelle Eingabe | Q56: =B56 -> 
A57: Neuer Anteil | B57: =IF(Q58="","",1-Q58) ->  | N57: 1 | P57: Typischen Wert berechnen | Q57: =IF('Exceltool Modernisierungspakete'!D39="","",'Exceltool Modernisierungspakete'!D39) -> 
P58: gesamt | Q58: =IF(N57=1,"",IF(N57=3,Q56,IF(N57=2,Q57,""))) -> 
A59: Einsparpotenzial Endenergie Wärme: | C59: alt | D59: =IF(B29="","",B29) ->  | E59: kWh/a | H59: Energieträger | I59: Arbeitspreis | J59: Altpumpe ungeregelt | K59: Hocheffizienzpumpe
C60: neu | D60: =IF(OR(B57="",D59=""),"",B57*D59) ->  | E60: kWh/a | I60: €/kWh | J60: 305 | K60: 62
C61: gespart | D61: =IF(OR(D59="",D60=""),"",D59-D60) ->  | E61: kWh/a | H61: Erdgas | I61: 0.06 | J61: 1082 | K61: 213 | M61: Energiepreis | N61: eigentlich | O61: =IF(A19=1,"",IF(A19=2,I61,IF(A19=3,I62,IF(A19=4,I65,IF(A19=5,I64,""))))) ->  | Q61: Bitte wählen
H62: Heizöl | I62: 0.07 | M62: 1 | N62: eingetragen | O62: =IF('Exceltool Modernisierungspakete'!D29="","",'Exceltool Modernisierungspakete'!D29) ->  | Q62: Manuelle Eingabe
A63: Einsparpotenzial Hilfsenergie | C63: gespart | D63: =IF(OR(A48=1,B31=""),"",2.5*B31) ->  | E63: kWh/a | F63: =IF(OR(D63="",O68=""),"",D63*O68) ->  | G63: €/a | H63: Fernwärme | I63: 0.07 | N63: gesamt | O63: =IF(M62=1,"",IF(M62=2,O62,IF(M62=3,O61,""))) ->  | Q63: Standardwert
H64: Pellet | I64: 0.05 | N64: angepasst | O64: =IF(O63="","",O63) -> 
A65: Einsparpotenzial Energiekosten Wärme | C65: alt | D65: =IF(OR(D59="",A19=1,O64=""),"",O64*D59) ->  | E65: €/a | H65: Wärmepumpen-Strom | I65: 0.2
C66: neu | D66: =IF(OR(D60="",A19=1,O64=""),"",O64*D60) ->  | E66: €/a | F66: gesamt | H66: Hilfsenergie Strom | I66: 0.26 | M66: Hilfspreis | N66: eigentlich | O66: =I66 -> 0.26 | Q66: Bitte wählen
C67: gespart | D67: =IF(OR(D65="",D66=""),"",D65-D66) ->  | E67: €/a | F67: =IF(OR(F63="",D67=""),"",F63+D67) ->  | G67: €/a | M67: 1 | N67: eingetragen | O67: =IF('Exceltool Modernisierungspakete'!$D$32="","",'Exceltool Modernisierungspakete'!$D$32) ->  | Q67: Manuelle Eingabe
N68: gesamt | O68: =IF(M67=1,"",IF(M67=2,O67,IF(M67=3,O66,""))) ->  | Q68: Standardwert
A69: Investitionskosten Maßnahme | C69: =IF(AND(A48=2,NOT(A19=1)),E80,IF(AND(A19=2,A48=3),F80,IF(AND(A19=2,A48=4),G80,IF(AND(A19=3,A48=3),H80,IF(AND(A19=3,A48=4),I80,IF(AND(A19=4,A48=3),J80,IF(AND(A19=5,A48=3),K80,""))))))) ->  | D69: berechnet | E69: V1 | F69: V2 | G69: V3 | H69: V4 | I69: V5 | J69: V6 | K69: V7
A70: ='Exceltool Modernisierungspakete'!C12 -> 1 | B70: Bitte wählen | C70: =IF(A70=1,"",IF(AND(NOT('Exceltool Modernisierungspakete'!F48=""),A70=2),'Exceltool Modernisierungspakete'!F48,IF(Tabelle2!A70=3,Tabelle2!C69,""))) ->  | D70: manuell | E70: Anzahl HK | F70: Heizlast | G70: Heizlast | H70: Heizlast | I70: Heizlast | J70: Heizlast | K70: Heizlast
B71: Manuelle Eingabe | C71: =IF(C70="","",IF('Exceltool Modernisierungspakete'!F49="",C70,C70-'Exceltool Modernisierungspakete'!F49)) ->  | D71: - Förderung | E71: =IF('Exceltool Modernisierungspakete'!I16="","",'Exceltool Modernisierungspakete'!I16) ->  | F71: =B8 -> 0 | G71: =B8 -> 0 | H71: =B8 -> 0 | I71: =B8 -> 0 | J71: =B8 -> 0 | K71: =B8 -> 0
B72: Typischen Wert berechnen | E72: =IF(E71="","",38.258*E71 + 631.37) ->  | F72: =IF(F71="","",26 * F71+ 3500) -> 3500 | G72: =IF(G71="","",26*G71+3500) -> 3500 | H72: =IF(H71="","",1.3775*H71^2 - 20.529*H71 + 5873.2) -> 5873.2 | I72: =IF(I71="","", 1.3775*I71^2 - 20.529*I71 + 5873.2) -> 5873.2 | J72: =IF(J71="","",-18 * J71^2 + 1514 * J71 + 3423) -> 3423 | K72: =IF(K71="","",118*K71+ 18455) -> 18455
F73: Anzahl WE | G73: Nutzfläche | H73: Anzahl WE | I73: Nutzfläche | K73: Gebäudehöhe
F74: =IF(A40=1,"",IF(A40=2,1,IF(A40=3,2,""))) ->  | G74: =B31 ->  | H74: =IF(A40=1,"",IF(A40=2,1,IF(A40=3,2,""))) ->  | I74: =B31 ->  | K74: =IF('Exceltool Modernisierungspakete'!I17="","",'Exceltool Modernisierungspakete'!I17) -> 
F75: =IF(F74="","",IF(F74=1,1500,IF(F74=2,1600,""))) ->  | G75: =IF(G74="","",560*(0.09*G74^0.8)+3098) ->  | H75: =IF(H74="","",IF(H74=1,1500,IF(H74=2,1600,""))) ->  | I75: =IF(I74="","",560*(0.09*I74^0.8)+3098) ->  | K75: =IF(K74="","",130*K74) -> 
F76: Gebäudehöhe | G76: Gebäudehöhe | H76: Gebäudehöhe | I76: Gebäudehöhe
F77: =IF('Exceltool Modernisierungspakete'!I17="","",'Exceltool Modernisierungspakete'!I17) ->  | G77: =IF('Exceltool Modernisierungspakete'!I17="","",'Exceltool Modernisierungspakete'!I17) ->  | H77: =IF('Exceltool Modernisierungspakete'!I17="","",'Exceltool Modernisierungspakete'!I17) ->  | I77: =IF('Exceltool Modernisierungspakete'!I17="","",'Exceltool Modernisierungspakete'!I17) -> 
F78: =IF(F77="","",78*F77) ->  | G78: =IF(G77="","",78*G77) ->  | H78: =IF(H77="","",78*H77) ->  | I78: =IF(I77="","",78*I77) -> 
E79: =IF(E72="","",E72) ->  | F79: =IF(OR(F72="",F75="",F78="",$E$71=""),"",F72+F75+F78+35.887*$E$71+317.74) ->  | G79: =IF(OR(G72="",G75="",G78="",$E$71=""),"",G72+G75+G78+35.887*$E$71+317.74) ->  | I79: =IF(OR(I72="",I75="",I78="",$E$71=""),"",I72+I75+I78+35.887*$E$71+317.74) ->  | J79: =IF(OR(E71="",J72=""),"",J72+35.887*$E$71+317.74) ->  | K79: =IF(OR(K72="",K75="",E71=""),"",K72+K75+35.887*$E$71+317.74) -> 
E80: =IF(E79="","",ROUND(E79,-1)) ->  | F80: =IF(F79="","",ROUND(F79,-2)) -> 
N81: Lebensdauer: | P81: Gerät | Q81: Jahre
A82: Statische Amortisationszeit | C82: =IF(OR(C71="",F67=""),"",IF(C71/F67<0,0,C71/F67)) ->  | D82: Jahre | E82: in Lebensdauer: | F82: =IF(OR(N82=C82,N82>C82),"ja","nein") -> ja | H82: Energieträger | I82: Primärenergiefaktor | J82: CO2-Emissionsfaktor | N82: =IF(A48=1,"",IF(A48=2,Q82,IF(A48=3,(IF(A19=2,Q83,IF(A19=3,Q85,IF(A19=4,Q87,IF(A19=5,Q88,""))))),IF(A48=4,IF(A19=2,Q84,IF(A19=3,Q86,"")))))) ->  | O82: V1 | P82: HE-Pumpe | Q82: 20
I83: fP | J83: fCO2 | O83: V2 | P83: Gas-BW | Q83: 20
H84: Erdgas | I84: 1.1 | J84: 228 | O84: V3 | P84: Solaranlage | Q84: 20
A85: Einsparpotenzial Primärenergie | C85: Einsparung PE Wärme | E85: =IF(OR(A19=1,D61=""),"",IF(A19=2,D61/E28*I84,IF(A19=3,D61*I85,IF(A19=4,D61*I87,IF(A19=5,D61*I86,""))))) ->  | F85: kWh/a | H85: Heizöl | I85: 1.1 | J85: 312 | O85: V4 | P85: Öl-BW | Q85: 20
C86: Einsparung PE HE | E86: =IF(D63="","",D63*I88) ->  | F86: kWh/a | H86: Pellet | I86: 0.2 | J86: 20 | O86: V5 | P86: Solaranlage | Q86: 20
C87: Einsparung PE gesamt | E87: =IF(OR(E85="",E86=""),"",E85+E86) ->  | F87: kWh/a | H87: Wärmepumpen-Strom | I87: 1.8 | J87: 568 | O87: V6 | P87: LW-WP | Q87: 20
H88: Hilfsenergie Strom | I88: 1.8 | J88: 568 | O88: V7 | P88: Pelletkessel | Q88: 20
A89: Einsparpotenzial CO2-Emissionen | C89: Einsparung CO2 Wärme | E89: =IF(OR(A19=1,D61=""),"",IF(A19=2,D61/E28*J84,IF(A19=3,D61*J85,IF(A19=4,D61*J87,IF(A19=5,D61*J86,""))))) ->  | F89: g/a | G89: =IF(E89="","",E89/1000) ->  | H89: kg/a
C90: Einsparung CO2 HE | E90: =IF(D63="","",D63*J88) ->  | F90: g/a | G90: =IF(E90="","",E90/1000) ->  | H90: kg/a
C91: Einsparung CO2 gesamt | E91: =IF(OR(E89="",E90=""),"",E89+E90) ->  | F91: g/a | G91: =IF(E91="","",E91/1000) ->  | H91: kg/a
A94: Umrechnung | C94: Energieträger wählen | E94: alt | F94: =IF(Hinweise!H54="","",Hinweise!H54) -> 
B95: 1 | C95: Heizöl | E95: neu | F95: =IF(F94="","",IF(B95=2,F94*10.081,IF(B95=3,F94*4.9,""))) -> 
C96: Pellets

Sheet Ergebnisse Einzelmaßnahmen
A1: Ergebnisse Einzelmaßnahmen
B7: Typische Einsparungen bei Einzelmaßnahmen statt Modernisierungspaketen nach Heizungs-Check 2.0:
B9: Maßnahme | E9: Einsparpotenzial Wärme | G9: Einsparung Hilfsenergie | H9: Investitionskosten
H10: von | I10: bis
B11: Einbau Hocheffizienzpumpe | E11: 0.07 | F11: 0.01 | G11: 2.5 | H11: 300 | I11: 500
B12: Dämmung Verteilleitungen Keller | F12: 0.02 | H12: 400
B13: Einbau voreinstellbare Thermostatventile und | F13: 0.04 | H13: 400 | I13: 1000
B14: hydraulischer Abgleich
B16: Beispiel 1: | C16: Einfamilienhaus, Wärmeschutzstandard 1984 -1994, Gasheizung
C17: Nutzfläche: | D17: 150 | E17: m² | F17: Vebrauchswert: | H17: 19500 | I17: kWh/a
B19: Maßnahme | E19: Investitions- kosten | F19: Einsparung Wärme | G19: Einsparung Hilfsenergie | H19: Einsparung Energiekosten | I19: Amortisa- tionszeit
B21: Einbau Hocheffizienzpumpe | E21: 300 | F21: =F11*$H$17*1.11 -> 216.45 | G21: =G11*D17 -> 375 | H21: =MROUND(F21*0.06+$G$21*0.26,5) -> 110 | I21: =E21/H21 -> 2.727272727
B22: Dämmung Verteilleitungen Keller | E22: 400 | F22: =F12*$H$17*1.11 -> 432.9 | H22: 25 | I22: 16
B23: Einbau voreinstellbare Thermostatventile und | E23: 400 | F23: =(F13+F14)*$H$17*1.11 -> 865.8 | H23: 50 | I23: 8
B24: hydraulischer Abgleich
B26: Beispiel 2: | C26: Einfamilienhaus, Wärmeschutzstandard 1984 -1994, Gasheizung
C27: Nutzfläche: | D27: 250 | E27: m² | F27: Vebrauchswert: | H27: 32500 | I27: kWh/a
B29: Maßnahme | E29: Investitions- kosten | F29: Einsparung Wärme | G29: Einsparung Hilfsenergie | H29: Einsparung Energiekosten | I29: Amortisa- tionszeit
B31: Einbau Hocheffizienzpumpe | E31: 400 | F31: =F11*$H$27*1.11 -> 360.75 | G31: =G11*D27 -> 625 | H31: =MROUND(F31*0.06+$G$31*0.26,5) -> 185 | I31: =E31/H31 -> 2.162162162
B32: Dämmung Verteilleitungen Keller | E32: 400 | F32: =F12*$H$27*1.11 -> 721.5 | H32: 45 | I32: 8.888888889
B33: Einbau voreinstellbare Thermostatventile und | E33: 500 | F33: =(F13+F14)*$H$27*1.11 -> 1443 | H33: 85 | I33: 5.882352941
B34: hydraulischer Abgleich

Sheet Hinweise
A1: Hinweise zur Benutzung des Excel-Tools
B7: Version: | C7: 1.0
B8: Ersteller: | C8: ITG Institut für Technische Gebäudeausrüstung Dresden, Forschung und Anwendung GmbH
C9: in Abstimmung mit Fraunhofer IFAM
B11: Das Excel-Tool dient dem Ziel einer Abschätzung des Einsparpotenzials und der Wirtschaftlichkeit von Heizungsmodernisierungen. Die Grundlage für die Modernisierungansätze der Heizungsanlage bieten die Modernisierungsvorschläge aus dem Heizungs-Check.
B15: Anwendungshinweis: | D15: Den Berechnungen im vorliegendem Tool liegen mittlere Verhältnisse bei der Ermittlung der möglichen Einsparungen und Kosten zu Grunde. Im konkreten Einzelfall können sich Abweichungen zu den dargestellten Berechnungen ergeben. Ursachen dafür können sein:
E17: - abweichende Verhältnisse bei der vorhandenen Anlage, beispielsweise beim tatsächlichen Verbrauch und dem möglichen Einsparpotenzial
E18: - unterschiedliche Investitionskosten in Abhängigkeit von Hersteller, Region und Jahreszeit
E20: - schwankende Energiepreise
B22: Anmerkungen zu den Eingaben im Tool:
B24: Gültigkeitsbedingungen: | D24: Das Tool ist für die Berechnung von Ein- bis Zweifamilienhäusern mit einer Nutzfläche zwischen 50 und 500 m² und einer maximalen Heizlast von 40 kW konzipiert.
B28: Wärmeschutz: | D28: Die Zuordnung zum jeweiligen Wärmeschutzniveau erfolgt nach dem Baujahr bzw. dem Sanierungsstand der Bauhülle. Kriterien für die Auswahl werden nachfolgend angegeben:
D31: - bis 1977: | F31: Einfachverglasung (U = 5,0 W/m²K), einschaliges Mauerwerk (U = 1,0 W/m²K), schlecht gedämmtes Dach (U = 0,8 W/m²K), ungedämmte Kellerdecke
D34: - 1978 bis 1983: | F34: Zweifachverglasung, einschaliges Mauerwerk (U = 0,8 W/m²K), schlecht gedämmtes Dach (U = 0,5 W/m²K), ungedämmte Kellerdecke
D37: - 1984 bis 1994: | F37: Zweifach-Wärmeschutzverglasung (U = 3,2 W/m²K), einschaliges Mauerwerk (U = 0,6 W/m²K), gedämmtes Dach (U = 0,4 W/m²K), ungedämmte Kellerdecke
D40: - 1995 bis 2001: | F40: Zweifach-Wärmeschutzverglasung (U = 2,8 W/m²K), Mauerwerk (U = 0,5 W/m²K), gedämmtes Dach (U = 0,3 W/m²K), gedämmte Kellerdecke
D43: - 2002 bis 2008: | F43: Zweifach-Wärmeschutzverglasung (U = 1,8 W/m²K), Wärmedämmverbundsystem (U = 0,35/0,45 W/m²K), gedämmtes Dach (U = 0,25/0,3 W/m²K), gedämmte Kellerdecke
D46: - ab 2009: | F46: Zweifach-Wärmeschutzverglasung (U = 1,8 W/m²K), Wärmedämmverbundsystem (U = 0,28 W/m²K), gedämmtes Dach (U = 0,2 W/m²K), gedämmte Kellerdecke
B50: Heizlast & Verbrauchswert: | D50: Der Verbrauchswert für Gas ist brennwertbezogen einzutragen, da der Gaspreis wie üblich brennwertbezogen angesetzt wird. Für alle anderen Energieträger ist der Verbrauchswert auf den Heizwert bezogen.
D51: Die hinterlegten Verbrauchswerte entsprechen durchschnittlichen Werten. Liegt ein jährlicher Verbrauchswert vor, können diese Werte angepasst werden.
D53: Eine Umrechnung des jährlichen Brennstoffverbrauchs in kWh/a kann hier erfolgen:
F54: Verbrauch: | J54: =IF(Tabelle2!B95=2,"L/a",IF(Tabelle2!B95=3,"kg/a","")) -> 
F55: Entspricht: | H55: =IF(Tabelle2!F95="","",Tabelle2!F95) ->  | J55: =IF(H55="","","kWh/a") -> 
B57: Auslegungstemperaturen: | D57: Die Auslegungs-Vorlauftemperatur der Heizungsanlage ist die notwendige Temperatur des Heizungswassers bei Norm-Außentemperatur. Anhand der Auslegungstemperaturen erfolgt die Dimensionierung der Heizkörper.
B61: Norm-Außentemperatur: | D61: Norm-Außentemperaturen für deutsche Städte mit mehr als 20.000 Einwohnern werden in DIN EN 12831 Bbl.1: 2008-07 angegeben. Als Referenzklima für
D63: Deutschland gilt nach DIN V 18599-10:2011-12 der Referenzort Potsdam mit einer Norm-Außentemperatur von -14°C.
B66: Modernisierungen: | D66: Der Umfang der einzelnen Modernisierungen ist im Arbeitsblatt "Excel-Tool" beschrieben. Es wird davon ausgegangen, dass ein Austausch des Wärmeerzeugers stets eine Optimierung der Gesamtanlage einschließt.
D69: Die hinterlegten Einsparpotenziale entsprechen durchschnittlichen Werten. Je nach Zustand der Heizungsanlage können diese Werte entsprechend angepasst werden.
B73: Hilfsenergie: | D73: Es wird davon ausgegangen dass durch den Einbau einer Hocheffizienzpumpe 2,5 kWh/m²a an Hilfsenergie eingespart werden können.
B76: Förderungen: | D76: Einfluss auf die Wirtschaftlichkeit von Modernisierungsmaßnahmen haben Investitions-Förderungen. Der Förderbetrag ist als positiver Wert einzutragen. Es stehen bundesweite Förderungen durch das Bundesamt für Wirtschaft und
D79: Ausfuhrkontrolle (BAFA) und die Kreditanstalt für Wiederaufbau (KfW) zur Verfügung. Die Optimierung der Gesamtanlage ist dabei Teil der Förderungen.
D81: Aktuelle Fördersätze und Förderbedingungen können unter www.bafa.de bzw. unter www.kfw.de abgerufen werden.
B84: Lebensdauer der Anlage: | D84: Es wird von einer mittleren Lebensdauer der Heizungsanlagen von etwa 20 Jahren ausgegangen werden. Einzelne Komponenten wie Heizflächen/
D86: Rohrleitungen weisen höhere Lebensdauern von etwa 30 bis 35 Jahren auf. Hingegen beträgt die Lebensdauer von Heizungsumwälzpumpen oder Zirkulationspumpen nur etwa 10 Jahre.
B90: CO2-Einsparungen: | D90: Die CO2-Emissionen werden mit den Standardwerten aus Gemis Version 4.94 ermittelt. Für Biomassekessel werden die CO2-Emissionen mit den typischen Emissionswerten von Pellets berechnet.
B93: Primärenergie-Einsparungen | D93: Die Berechnung der Einsparungen an Primärenergie erfolgen mit den Primärenergiefaktoren nach DIN V 1859: 2011-12 unter Berücksichtigung der Vorgaben der Energieeinsparverordnung (EnEV 2014) für den elektrischen Strom. Entsprechend EnEV erfolgt ein Bezug auf den nicht erneuerbaren Anteil des Primärenergiebedarfes.
